fUSD/lending_fUSD_20240404
["ID","MTS","AMOUNT","RATE_DAILY","PERIOD"]
[321462034,1712200336289,-500.0,0.00056164,120]
[321462035,1712200336299,-627.13,0.00056164,120]
[321462036,1712200336311,-8609.89,0.00056164,120]
[321462037,1712200336322,-5468.41,0.00056164,120]
[321462038,1712200336333,-1151.94,0.00056164,120]
[321462039,1712200336343,-1889.11,0.00056164,120]
[321462040,1712200336353,-500.0,0.00056164,120]
[321462041,1712200336363,-525.95,0.00056164,120]
[321462042,1712200336374,-53073.95,0.00056164,120]
[321462043,1712200336383,-6399.43,0.00056164,120]
[321462044,1712200336393,-645.37,0.00056164,120]
[321462045,1712200336402,-1683.47,0.00056164,120]
[321462046,1712200336412,-281.2366674,0.00056164,120]
[321462047,1712200336421,-6691.4,0.00056164,120]
[321462048,1712200336431,-1927.66,0.00056164,120]
[321462049,1712200336440,-611.07,0.00056164,120]
[321462050,1712200336450,-1030.18,0.00056164,120]
[321462051,1712200336459,-604.27,0.00056164,120]
[321462052,1712200336469,-5148.74,0.00056164,120]
[321462053,1712200336478,-8800.38,0.00056164,120]
[321462054,1712200336487,-500.0,0.00056164,120]
[321462055,1712200336496,-1657.49,0.00056164,120]
[321462056,1712200336505,-2507.81,0.00056164,120]
[321462057,1712200336515,-614.29,0.00056164,120]
[321462058,1712200336524,-825.58,0.00056164,120]
[321462059,1712200336533,-989.45,0.00056164,120]
[321462060,1712200336542,-852.93,0.00056164,120]
[321462061,1712200336551,-500.0,0.00056164,120]
[321462062,1712200336561,-2396.3,0.00056164,120]
[321462063,1712200336570,-1134.76,0.00056164,120]
[321462064,1712200336580,-500.0,0.00056164,120]
[321462065,1712200336589,-5513.42,0.00056164,120]
[321462066,1712200336599,-571.44,0.00056164,120]
[321462067,1712200336609,-1852.1,0.00056164,7]
[321462068,1712200336621,-2968.67,0.00056164,120]
[321462069,1712200336632,-2345.81,0.00056164,120]
[321462070,1712200336643,-3000.0,0.00056164,120]
[321462071,1712200336652,-500.0,0.00056164,120]
[321462072,1712200336663,-1250.54,0.00056164,120]
[321462073,1712200336673,-500.0,0.00056164,120]
[321462074,1712200336683,-2079.2,0.00056164,120]
[321462075,1712200336692,-202.86792415,0.00056164,120]
[321462076,1712200336702,-500.0,0.00056164,120]
[321462077,1712200336711,-500.0,0.00056164,120]
[321462078,1712200336721,-3247.17,0.00056164,120]
[321462079,1712200336732,-423.17876906,0.00056164,120]
[321462080,1712200336741,-871.75,0.00056164,120]
[321462081,1712200336751,-902.7,0.00056164,120]
[321462082,1712200336762,-500.0,0.00056164,120]
[321462083,1712200336773,-15898.05,0.00056164,120]
[321462084,1712200336783,-3358.82,0.00056164,120]
[321462085,1712200336794,-690.28,0.00056164,120]
[321462086,1712200336804,-3349.18,0.00056164,120]
[321462087,1712200336814,-1202.73,0.00056164,120]
[321462088,1712200336825,-3733.56,0.00056164,120]
[321462089,1712200336836,-3909.57,0.00056164,120]
[321462090,1712200336846,-2507.95,0.00056164,120]
[321462091,1712200336856,-2808.48,0.00056164,120]
[321462092,1712200336867,-500.0,0.00056164,120]
[321462093,1712200336887,-500.0,0.00056164,120]
[321462094,1712200336897,-556.58,0.00056164,120]
[321462095,1712200336908,-755.27,0.00056164,120]
[321462096,1712200336918,-296.13135956,0.00056164,120]
[321462097,1712200336929,-2313.89,0.00056164,120]
[321462098,1712200336940,-2398.13,0.00056164,120]
[321462099,1712200336951,-14500.53,0.00056164,120]
[321462100,1712200336962,-1675.35,0.00056164,120]
[321462101,1712200336974,-2367.07,0.00056164,120]
[321462102,1712200336984,-2722.45,0.00056164,120]
[321462103,1712200336995,-1253.38,0.00056164,120]
[321462104,1712200337006,-535.19249791,0.00056164,120]
[321462105,1712200337017,-552.28,0.00056164,120]
[321462106,1712200337027,-1188.53,0.00056164,120]
[321462107,1712200337038,-1586.48,0.00056164,120]
[321462108,1712200337047,-500.0,0.00056164,120]
[321462109,1712200337057,-500.0,0.00056164,120]
[321462110,1712200337067,-2639.18,0.00056164,120]
[321462111,1712200337077,-500.0,0.00056164,120]
[321462112,1712200337087,-500.0,0.00056164,120]
[321462113,1712200337096,-500.0,0.00056164,120]
[321462114,1712200337106,-1457.76,0.00056164,120]
[321462115,1712200337116,-1660.69,0.00056164,120]
[321462116,1712200337131,-2986.02,0.00056164,120]
[321462117,1712200337141,-1877.49,0.00056164,120]
[321462118,1712200337151,-771.63,0.00056164,120]
[321462119,1712200337161,-2410.62,0.00056164,120]
[321462120,1712200337171,-1159.24,0.00056164,120]
[321462121,1712200337181,-3214.36,0.00056164,120]
[321462122,1712200337191,-903.02,0.00056164,120]
[321462123,1712200337201,-924.61,0.00056164,120]
[321462124,1712200337211,-500.0,0.00056164,120]
[321462125,1712200337220,-500.0,0.00056164,120]
[321462126,1712200337230,-500.0,0.00056164,120]
[321462127,1712200337239,-40448.75,0.00056164,120]
[321462128,1712200337249,-1955.63,0.00056164,120]
[321462129,1712200337259,-2432.48,0.00056164,120]
[321462130,1712200337270,-500.0,0.00056164,120]
[321462131,1712200337280,-597.8488279,0.00056164,120]
[321462132,1712200337290,-1208.03,0.00056164,120]
[321462133,1712200337301,-3666.55,0.00056164,120]
[321462134,1712200337320,-500.0,0.00056164,120]
[321462135,1712200337339,-565.01,0.00056164,120]
[321462136,1712200337356,-2721.89,0.00056164,120]
[321462137,1712200337376,-1251.21,0.00056164,120]
[321462138,1712200337392,-593.12,0.00056164,120]
[321462139,1712200337410,-6048.98,0.00056164,120]
[321462140,1712200337428,-1635.1,0.00056164,120]
[321462141,1712200337445,-500.0,0.00056164,120]
[321462142,1712200337465,-8828.9,0.00056164,120]
[321462143,1712200337482,-581.42542818,0.00056164,120]
[321462144,1712200337500,-1504.24,0.00056164,120]
[321462145,1712200337520,-500.0,0.00056164,120]
[321462146,1712200337537,-835.11,0.00056164,120]
[321462147,1712200337552,-18220.01,0.00056164,120]
[321462148,1712200337569,-5900.97,0.00056164,120]
[321462149,1712200337584,-881.61,0.00056164,120]
[321462150,1712200337599,-1186.29,0.00056164,120]
[321462151,1712200337615,-22689.12,0.00056164,120]
[321462152,1712200337640,-528.6,0.00056164,120]
[321462153,1712200337656,-500.0,0.00056164,120]
[321462154,1712200337673,-500.0,0.00056164,120]
[321462155,1712200337689,-500.0,0.00056164,120]
[321462156,1712200337706,-3620.99,0.00056164,120]
[321462157,1712200337722,-2635.7,0.00056164,120]
[321462158,1712200337737,-500.0,0.00056164,120]
[321462159,1712200337754,-321.33004604,0.00056164,120]
[321462160,1712200337770,-650.57,0.00056164,120]
[321462161,1712200337786,-1339.71,0.00056164,120]
[321462162,1712200337802,-500.0,0.00056164,120]
[321462163,1712200337818,-500.0,0.00056164,120]
[321462164,1712200337833,-4460.99,0.00056164,120]
[321462165,1712200337848,-2237.15,0.00056164,21]
[321462166,1712200337865,-500.0,0.00056164,120]
[321462167,1712200337888,-1711.13,0.00056164,7]
[321462168,1712200337905,-500.0,0.00056164,120]
[321462169,1712200337921,-1691.17,0.00056164,120]
[321462170,1712200337937,-658.56,0.00056164,120]
[321462171,1712200337953,-500.0,0.00056164,120]
[321462172,1712200337970,-500.0,0.00056164,120]
[321462173,1712200337984,-500.0,0.00056164,120]
[321462174,1712200338000,-7361.59,0.00056164,120]
[321462175,1712200338016,-500.0,0.00056164,120]
[321462176,1712200338031,-500.0,0.00056164,120]
[321462177,1712200338047,-500.0,0.00056164,120]
[321462178,1712200338062,-1097.27,0.00056164,120]
[321462179,1712200338079,-4641.79,0.00056164,120]
[321462180,1712200338096,-500.0,0.00056164,120]
[321462181,1712200338112,-5803.21,0.00056164,120]
[321462182,1712200338130,-500.0,0.00056164,120]
[321462183,1712200338146,-4333.28,0.00056164,120]
[321462184,1712200338162,-5008.64,0.00056164,120]
[321462185,1712200338177,-1131.15,0.00056164,120]
[321462186,1712200338194,-812.33,0.00056164,120]
[321462187,1712200338209,-15539.97,0.00056164,120]
[321462188,1712200338224,-2073.37,0.00056164,120]
[321462189,1712200338241,-500.0,0.00056164,120]
[321462190,1712200338256,-500.0,0.00056164,120]
[321462191,1712200338272,-1653.07,0.00056164,120]
[321462192,1712200338285,-786.18,0.00056164,120]
[321462193,1712200338294,-500.0,0.00056164,120]
[321462194,1712200338304,-500.0,0.00056164,120]
[321462195,1712200338313,-500.0,0.00056164,120]
[321462196,1712200338323,-3101.5,0.00056164,120]
[321462197,1712200338334,-4002.83,0.00056164,120]
[321462198,1712200338344,-500.0,0.00056164,120]
[321462199,1712200338354,-780.89,0.00056164,120]
[321462200,1712200338364,-1099.33,0.00056164,120]
[321462201,1712200338376,-1810.31,0.00056164,120]
[321462202,1712200338386,-500.0,0.00056164,120]
[321462203,1712200338395,-992.63,0.00056164,120]
[321462204,1712200338405,-2719.84,0.00056164,120]
[321462205,1712200338415,-1000.0,0.00056164,120]
[321462206,1712200338425,-4594.4,0.00056164,120]
[321462207,1712200338434,-500.0,0.00056164,120]
[321462208,1712200338444,-3281.58,0.00056164,120]
[321462209,1712200338453,-4452.74,0.00056164,120]
[321462210,1712200338463,-8315.86,0.00056164,30]
[321462211,1712200338472,-500.0,0.00056164,2]
[321462212,1712200338482,-5676.39,0.00056164,120]
[321462213,1712200338492,-799.28,0.00056164,120]
[321462214,1712200338502,-500.0,0.00056164,120]
[321462215,1712200338511,-500.0,0.00056164,120]
[321462216,1712200338521,-2184.04,0.00056164,120]
[321462217,1712200338531,-2848.68,0.00056164,120]
[321462218,1712200338541,-871.82,0.00056164,120]
[321462219,1712200338550,-500.0,0.00056164,120]
[321462220,1712200338560,-500.0,0.00056164,120]
[321462221,1712200338569,-577.33,0.00056164,120]
[321462222,1712200338579,-1635.35,0.00056164,120]
[321462223,1712200338588,-2850.37,0.00056164,120]
[321462224,1712200338598,-4917.1,0.00056164,120]
[321462225,1712200338608,-500.0,0.00056164,120]
[321462226,1712200338618,-500.0,0.00056164,120]
[321462227,1712200338629,-888.72,0.00056164,120]
[321462228,1712200338639,-2799.35,0.00056164,120]
[321462229,1712200338648,-500.0,0.00056164,120]
[321462230,1712200338658,-1108.08,0.00056164,120]
[321462231,1712200338667,-2491.48,0.00056164,120]
[321462232,1712200338677,-3318.06,0.00056164,120]
[321462233,1712200338687,-1922.21,0.00056164,120]
[321462234,1712200338696,-635.38,0.00056164,120]
[321462235,1712200338706,-1842.18,0.00056164,120]
[321462236,1712200338715,-500.0,0.00056164,120]
[321462237,1712200338725,-2240.52,0.00056164,120]
[321462238,1712200338736,-500.0,0.00056164,120]
[321462239,1712200338745,-7532.02,0.00056164,120]
[321462240,1712200338754,-2789.6,0.00056164,120]
[321462241,1712200338765,-500.0,0.00056164,120]
[321462242,1712200338774,-6100.85,0.00056164,120]
[321462243,1712200338783,-19673.78,0.00056164,120]
[321462244,1712200338793,-406.65,0.00056164,120]
[321462245,1712200338803,-230.62149275,0.00056196,120]
[321462246,1712200338814,-2000.0,0.000562,120]
[321462247,1712200338824,-200.0,0.00056216,120]
[321462248,1712200338833,-200.0,0.00056216,120]
[321462249,1712200338843,-151.0,0.00056219,120]
[321462250,1712200338853,-1893.58,0.0005623,120]
[321462251,1712200338863,-1893.58,0.0005623,120]
[321462252,1712200338878,-150.0,0.000563,120]
[321462253,1712200338888,-150.0,0.000563,35]
[321462254,1712200338898,-999.0,0.000563,40]
[321462255,1712200338910,-961.27,0.00056301,120]
[321462256,1712200338920,-6922.39714921,0.00056314,2]
[321462257,1712200338930,-151.0,0.00056329,120]
[321462258,1712200338940,-2110.0,0.00056352,15]
[321462259,1712200338951,-3602.1059078,0.00056399,2]
[321462260,1712200338960,-6780.6501357,0.00056399,2]
[321462261,1712200338970,-10277.3515712,0.00056399,2]
[321462262,1712200338979,-1542.8692378,0.00056399,2]
[321462263,1712200338989,-152.11,0.000564,8]
[321462264,1712200338999,-152.11,0.000564,8]
[321462265,1712200339008,-152.11,0.000564,8]
[321462266,1712200339018,-152.11,0.000564,8]
[321462267,1712200339028,-152.11,0.000564,8]
[321462268,1712200339038,-152.11,0.000564,8]
[321462269,1712200339047,-152.11,0.000564,8]
[321462270,1712200339057,-152.11,0.000564,8]
[321462271,1712200339066,-152.11,0.000564,8]
[321462272,1712200339075,-152.11,0.000564,8]
[321462273,1712200339085,-152.11,0.000564,8]
[321462274,1712200339094,-152.11,0.000564,8]
[321462275,1712200339103,-152.11,0.000564,8]
[321462276,1712200339113,-152.11,0.000564,8]
[321462277,1712200339123,-152.11,0.000564,8]
[321462278,1712200339133,-152.11,0.000564,8]
[321462279,1712200339142,-152.11,0.000564,8]
[321462280,1712200339152,-152.11,0.000564,8]
[321462281,1712200339904,-152.11,0.000564,8]
[321462282,1712200339926,-152.11,0.000564,8]
[321462283,1712200339944,-152.11,0.000564,8]
[321462284,1712200339963,-152.11,0.000564,8]
[321462285,1712200339981,-1151.93,0.0005641,120]
[321462286,1712200339999,-500.0,0.00056438,120]
[321462287,1712200340013,-500.0,0.00056438,120]
[321462288,1712200340023,-681.87,0.00056438,120]
[321462289,1712200340032,-723.7,0.00056438,120]
[321462290,1712200340042,-728.77,0.00056438,120]
[321462291,1712200340051,-584.05,0.00056438,120]
[321462292,1712200340061,-500.0,0.00056438,120]
[321462293,1712200340070,-974.99,0.00056438,120]
[321462294,1712200340080,-500.0,0.00056438,120]
[321462295,1712200340089,-500.0,0.00056438,120]
[321462296,1712200340098,-516.1406937,0.00056438,2]
[321462297,1712200340107,-500.0,0.00056438,120]
[321462298,1712200340117,-578.06,0.00056438,120]
[321462299,1712200340129,-618.09,0.00056438,120]
[321462300,1712200340139,-500.0,0.00056438,120]
[321462301,1712200340148,-500.0,0.00056438,120]
[321462302,1712200340157,-579.40494062,0.00056438,120]
[321462303,1712200340166,-541.59686361,0.00056438,120]
[321462304,1712200340176,-539.8,0.00056438,120]
[321462305,1712200340185,-500.0,0.00056438,120]
[321462306,1712200340194,-500.0,0.00056438,120]
[321462307,1712200340203,-500.0,0.00056438,120]
[321462308,1712200340214,-560.72,0.00056438,120]
[321462309,1712200340223,-151.0,0.00056438,120]
[321462310,1712200340233,-675.6,0.00056438,120]
[321462311,1712200340242,-500.0,0.00056438,120]
[321462312,1712200340251,-500.0,0.00056438,120]
[321462313,1712200340260,-674.64,0.00056438,120]
[321462314,1712200340269,-532.24,0.00056438,120]
[321462315,1712200340279,-518.08,0.00056438,120]
[321462316,1712200340288,-151.0,0.00056438,120]
[321462317,1712200340298,-813.48,0.00056438,120]
[321462318,1712200340307,-631.14,0.00056438,120]
[321462319,1712200340317,-151.0,0.00056438,120]
[321462320,1712200340327,-508.78794061,0.00056438,120]
[321462321,1712200340336,-797.4,0.00056438,120]
[321462322,1712200340345,-500.0,0.00056438,120]
[321462323,1712200340355,-151.0,0.00056438,120]
[321462324,1712200340365,-961.27,0.00056438,120]
[321462325,1712200340376,-658.74,0.00056438,120]
[321462326,1712200340385,-818.65,0.00056438,120]
[321462327,1712200340395,-151.0,0.00056438,120]
[321462328,1712200340404,-752.9,0.00056438,120]
[321462329,1712200340413,-539.48,0.00056438,120]
[321462330,1712200340422,-500.0,0.00056438,120]
[321462331,1712200340431,-500.0,0.00056438,120]
[321462332,1712200340440,-500.0,0.00056438,120]
[321462333,1712200340450,-500.0,0.00056438,120]
[321462334,1712200340459,-151.0,0.00056438,120]
[321462335,1712200340468,-500.0,0.00056438,120]
[321462336,1712200340477,-259.233093,0.00056438,7]
[321462337,1712200340486,-1653.33,0.00056438,2]
[321462338,1712200340495,-500.0,0.00056438,120]
[321462339,1712200340505,-259.233093,0.00056438,7]
[321462340,1712200340514,-500.0,0.00056438,120]
[321462341,1712200340523,-735.54,0.00056438,120]
[321462342,1712200340533,-500.0,0.00056438,120]
[321462343,1712200340542,-500.0,0.00056438,120]
[321462344,1712200340551,-500.0,0.00056438,120]
[321462345,1712200340561,-676.77,0.00056438,120]
[321462346,1712200340570,-500.0,0.00056438,120]
[321462347,1712200340580,-919.9,0.00056438,120]
[321462348,1712200340589,-500.0,0.00056438,120]
[321462349,1712200340598,-500.0,0.00056438,120]
[321462350,1712200340607,-500.0,0.00056438,120]
[321462351,1712200340616,-573.69,0.00056438,120]
[321462352,1712200340626,-703.82,0.00056438,120]
[321462353,1712200340636,-500.0,0.00056438,120]
[321462354,1712200340645,-151.0,0.00056438,120]
[321462355,1712200340654,-1029.43,0.00056438,120]
[321462356,1712200340664,-875.1,0.00056438,120]
[321462357,1712200340673,-151.0,0.00056438,120]
[321462358,1712200340682,-2209.07,0.00056438,120]
[321462359,1712200340692,-705.27,0.00056438,120]
[321462360,1712200340701,-500.0,0.00056438,120]
[321462361,1712200340711,-751.57,0.00056438,120]
[321462362,1712200340720,-330.48504062,0.00056438,120]
[321462363,1712200340729,-1008.2,0.00056438,120]
[321462364,1712200340738,-349.70718687,0.00056438,120]
[321462365,1712200340747,-2122.58,0.00056438,120]
[321462366,1712200340756,-1103.16,0.00056438,120]
[321462367,1712200340766,-514.46,0.00056438,120]
[321462368,1712200340775,-151.0,0.00056438,120]
[321462369,1712200340784,-929.17,0.00056438,120]
[321462370,1712200340793,-1658.5,0.00056438,30]
[321462371,1712200340802,-500.0,0.00056438,120]
[321462372,1712200340811,-668.56,0.00056438,120]
[321462373,1712200340820,-1348.04,0.00056438,120]
[321462374,1712200340830,-500.0,0.00056438,120]
[321462375,1712200340839,-500.0,0.00056438,120]
[321462376,1712200340849,-1849.99,0.00056438,120]
[321462377,1712200340858,-938.115971,0.00056438,120]
[321462378,1712200340870,-1432.04,0.00056438,120]
[321462379,1712200340882,-500.0,0.00056438,120]
[321462380,1712200340891,-500.0,0.00056438,120]
[321462381,1712200340901,-509.61,0.00056438,120]
[321462382,1712200340911,-500.0,0.00056438,120]
[321462383,1712200340920,-1244.36,0.00056438,120]
[321462384,1712200340929,-954.07,0.00056438,120]
[321462385,1712200340939,-1303.95,0.00056438,120]
[321462386,1712200340948,-500.0,0.00056438,120]
[321462387,1712200340960,-500.0,0.00056438,120]
[321462388,1712200340969,-1278.23,0.00056438,120]
[321462389,1712200340978,-706.05,0.00056438,120]
[321462390,1712200340987,-500.0,0.00056438,120]
[321462391,1712200340996,-151.0,0.00056438,7]
[321462392,1712200341006,-888.96,0.00056438,120]
[321462393,1712200341015,-1327.35,0.00056438,120]
[321462394,1712200341025,-540.54,0.00056438,120]
[321462395,1712200341034,-1122.07,0.00056438,120]
[321462396,1712200341044,-575.29,0.00056438,120]
[321462397,1712200341053,-1000.0,0.00056438,30]
[321462398,1712200341062,-500.0,0.00056438,120]
[321462399,1712200341071,-500.0,0.00056438,120]
[321462400,1712200341081,-500.0,0.00056438,120]
[321462401,1712200341090,-500.0,0.00056438,120]
[321462402,1712200341099,-937.01,0.00056438,120]
[321462403,1712200341108,-835.22,0.00056438,120]
[321462404,1712200341117,-500.0,0.00056438,120]
[321462405,1712200341129,-611.33,0.00056438,120]
[321462406,1712200341138,-500.0,0.00056438,120]
[321462407,1712200341147,-500.0,0.00056438,120]
[321462408,1712200341157,-500.0,0.00056438,120]
[321462409,1712200341166,-500.0,0.00056438,120]
[321462410,1712200341175,-474.48333187,0.00056438,120]
[321462411,1712200341184,-632.85,0.00056438,120]
[321462412,1712200341193,-680.97,0.00056438,120]
[321462413,1712200341202,-1123.71,0.00056438,120]
[321462414,1712200341211,-500.0,0.00056438,120]
[321462415,1712200341220,-500.0,0.00056438,120]
[321462416,1712200341230,-984.42,0.00056438,120]
[321462417,1712200341239,-500.0,0.00056438,120]
[321462418,1712200341248,-500.0,0.00056438,120]
[321462419,1712200341258,-1117.68,0.00056438,120]
[321462420,1712200341267,-500.0,0.00056438,120]
[321462421,1712200341276,-1174.17,0.00056438,120]
[321462422,1712200341285,-871.46,0.00056438,120]
[321462423,1712200341294,-279.871932,0.00056438,14]
[321462424,1712200341303,-563.56099946,0.00056438,120]
[321462425,1712200341313,-500.0,0.00056438,120]
[321462426,1712200341322,-1213.04,0.00056438,120]
[321462427,1712200341331,-500.0,0.00056438,120]
[321462428,1712200341340,-279.871932,0.00056438,14]
[321462429,1712200341349,-2563.86,0.00056438,120]
[321462430,1712200341359,-931.42,0.00056438,120]
[321462431,1712200341368,-516.8,0.00056438,120]
[321462432,1712200341379,-661.04,0.00056438,120]
[321462433,1712200341388,-961.33,0.00056438,120]
[321462434,1712200341398,-500.0,0.00056438,120]
[321462435,1712200341407,-1186.25,0.00056438,120]
[321462436,1712200341416,-500.0,0.00056438,120]
[321462437,1712200341425,-1011.46,0.00056438,120]
[321462438,1712200341434,-500.0,0.00056438,120]
[321462439,1712200341444,-664.68,0.00056438,120]
[321462440,1712200341454,-500.0,0.00056438,120]
[321462441,1712200341463,-500.0,0.00056438,120]
[321462442,1712200341472,-500.0,0.00056438,120]
[321462443,1712200341482,-500.0,0.00056438,120]
[321462444,1712200341491,-1280.05,0.00056438,120]
[321462445,1712200341500,-500.0,0.00056438,120]
[321462446,1712200341510,-500.0,0.00056438,120]
[321462447,1712200341520,-1040.16,0.00056438,120]
[321462448,1712200341529,-861.11,0.00056438,120]
[321462449,1712200341539,-340.729012,0.00056438,120]
[321462450,1712200341550,-1456.17,0.00056438,120]
[321462451,1712200341560,-554.95,0.00056438,120]
[321462452,1712200341569,-340.729012,0.00056438,120]
[321462453,1712200341578,-500.0,0.00056438,120]
[321462454,1712200341587,-979.87,0.00056438,120]
[321462455,1712200341597,-1376.36,0.00056438,120]
[321462456,1712200341606,-688.56,0.00056438,120]
[321462457,1712200341615,-798.23,0.00056438,120]
[321462458,1712200341627,-2000.0,0.00056438,30]
[321462459,1712200341636,-323.357105,0.00056438,120]
[321462460,1712200341646,-1138.59,0.00056438,120]
[321462461,1712200341655,-1326.85,0.00056438,120]
[321462462,1712200341664,-500.0,0.00056438,120]
[321462463,1712200341673,-323.357105,0.00056438,120]
[321462464,1712200341683,-512.74,0.00056438,120]
[321462465,1712200341693,-966.92,0.00056438,120]
[321462466,1712200341702,-580.58,0.00056438,120]
[321462467,1712200341711,-500.0,0.00056438,2]
[321462468,1712200341720,-2833.97,0.00056438,120]
[321462469,1712200341730,-1234.52,0.00056438,120]
[321462470,1712200341739,-500.0,0.00056438,120]
[321462471,1712200341748,-1217.52,0.00056438,120]
[321462472,1712200341758,-500.0,0.00056438,120]
[321462473,1712200341767,-603.02,0.00056438,120]
[321462474,1712200341776,-500.0,0.00056438,120]
[321462475,1712200341786,-516.97,0.00056438,120]
[321462476,1712200341795,-500.0,0.00056438,120]
[321462477,1712200341804,-635.94,0.00056438,120]
[321462478,1712200341813,-151.0,0.00056438,120]
[321462479,1712200341822,-1287.0,0.00056438,120]
[321462480,1712200341832,-1858.09,0.00056438,120]
[321462481,1712200341841,-912.58,0.00056438,80]
[321462482,1712200341850,-1134.63,0.00056438,120]
[321462483,1712200341860,-500.0,0.00056438,120]
[321462484,1712200341869,-867.47,0.00056438,120]
[321462485,1712200341882,-1123.8,0.00056438,120]
[321462486,1712200341891,-956.39,0.00056438,120]
[321462487,1712200341901,-500.0,0.00056438,120]
[321462488,1712200341910,-151.0,0.00056438,120]
[321462489,1712200341919,-500.0,0.00056438,120]
[321462490,1712200341929,-1178.01,0.00056438,120]
[321462491,1712200341939,-500.0,0.00056438,120]
[321462492,1712200341948,-500.0,0.00056438,120]
[321462493,1712200341960,-354.097611,0.00056438,120]
[321462494,1712200341970,-1765.04,0.00056438,120]
[321462495,1712200341979,-500.0,0.00056438,120]
[321462496,1712200341988,-354.097611,0.00056438,120]
[321462497,1712200341997,-500.0,0.00056438,120]
[321462498,1712200342007,-699.49,0.00056438,120]
[321462499,1712200342016,-1601.82,0.00056438,120]
[321462500,1712200342026,-1123.23,0.00056438,120]
[321462501,1712200342035,-1306.97,0.00056438,120]
[321462502,1712200342044,-500.0,0.00056438,120]
[321462503,1712200342053,-541.76,0.00056438,120]
[321462504,1712200342062,-1622.05,0.00056438,120]
[321462505,1712200342071,-151.0,0.00056438,60]
[321462506,1712200342080,-715.64,0.00056438,120]
[321462507,1712200342089,-646.89,0.00056438,120]
[321462508,1712200342098,-654.96,0.00056438,120]
[321462509,1712200342107,-782.49,0.00056438,120]
[321462510,1712200342116,-500.0,0.00056438,120]
[321462511,1712200342126,-856.28,0.00056438,120]
[321462512,1712200342134,-500.0,0.00056438,120]
[321462513,1712200342144,-1403.71,0.00056438,120]
[321462514,1712200342153,-699.19,0.00056438,120]
[321462515,1712200342162,-510.7,0.00056438,120]
[321462516,1712200342171,-500.0,0.00056438,120]
[321462517,1712200342180,-182.39300906,0.00056438,120]
[321462518,1712200342189,-500.0,0.00056438,120]
[321462519,1712200342198,-1770.64,0.00056438,120]
[321462520,1712200342207,-500.0,0.00056438,120]
[321462521,1712200342217,-500.0,0.00056438,2]
[321462522,1712200342226,-1207.23,0.00056438,30]
[321462523,1712200342236,-500.0,0.00056438,120]
[321462524,1712200342245,-198.86149,0.00056438,120]
[321462525,1712200342254,-500.0,0.00056438,120]
[321462526,1712200342265,-500.0,0.00056438,120]
[321462527,1712200342274,-897.12,0.00056438,120]
[321462528,1712200342283,-198.86149,0.00056438,120]
[321462529,1712200342292,-500.0,0.00056438,120]
[321462530,1712200342301,-940.76,0.00056438,120]
[321462531,1712200342310,-500.0,0.00056438,120]
[321462532,1712200342321,-511.27,0.00056438,120]
[321462533,1712200342330,-500.0,0.00056438,120]